lending/lending_fUSD_20250122
["ID","MTS","AMOUNT","RATE_DAILY","PERIOD"]
[349970554,1737541855164,-3903.0,0.00020702,2]
[349970555,1737541855174,-150.0,0.00020702,2]
[349970556,1737541855183,-654.69,0.00020709,2]
[349970557,1737541855193,-1545.87,0.00020709,2]
[349970558,1737541855203,-907.88,0.00020709,2]
[349970559,1737541855214,-1380.69,0.00020709,2]
[349970560,1737541855224,-1850.42,0.00020709,2]
[349970561,1737541855233,-1516.91,0.00020709,2]
[349970562,1737541855242,-953.88,0.00020709,2]
[349970563,1737541855252,-1013.98,0.00020709,2]
[349970564,1737541855262,-722.46,0.00020709,2]
[349970565,1737541855272,-1164.88,0.00020709,2]
[349970566,1737541855282,-902.13,0.00020709,2]
[349970567,1737541855291,-1003.6,0.00020709,2]
[349970568,1737541855302,-656.77,0.00020709,2]
[349970569,1737541855312,-1484.76,0.00020709,2]
[349970570,1737541855322,-500.0,0.00020709,2]
[349970571,1737541855333,-1336.41,0.00020709,2]
[349970572,1737541855343,-2006.54,0.00020709,2]
[349970573,1737541855352,-500.0,0.00020709,2]
[349970574,1737541855363,-677.86,0.00020709,2]
[349970575,1737541855373,-886.2,0.00020709,2]
[349970576,1737541855382,-2151.01,0.00020709,2]
[349970577,1737541855392,-2824.22,0.00020709,2]
[349970578,1737541855402,-3414.46,0.00020709,2]
[349970579,1737541855412,-841.92,0.00020709,2]
[349970580,1737541855421,-562.537247,0.00020709,2]
[349970581,1737541855430,-500.0,0.00020709,2]
[349970582,1737541855440,-944.29,0.00020709,2]
[349970583,1737541855450,-1011.31,0.00020709,2]
[349970584,1737541855460,-886.83,0.00020709,2]
[349970585,1737541855470,-956.347784,0.00020709,2]
[349970586,1737541855481,-1869.72,0.00020709,2]
[349970587,1737541855491,-3466.56,0.00020709,2]
[349970588,1737541855502,-500.0,0.00020709,2]
[349970589,1737541855512,-1416.25,0.00020709,2]
[349970590,1737541855523,-689.18,0.00020709,2]
[349970591,1737541855534,-1332.39,0.00020709,2]
[349970592,1737541855544,-2217.4,0.00020709,2]
[349970593,1737541855555,-806.82,0.00020709,2]
[349970594,1737541855566,-500.0,0.00020709,2]
[349970595,1737541855578,-1001.78,0.00020709,2]
[349970596,1737541855588,-1215.48,0.00020709,2]
[349970597,1737541855598,-500.0,0.00020709,2]
[349970598,1737541855608,-2702.1,0.00020709,2]
[349970599,1737541855619,-835.57,0.00020709,2]
[349970600,1737541855630,-500.0,0.00020709,2]
[349970601,1737541855641,-5470.45619032,0.0002071,2]
[349970602,1737541855651,-3000.0,0.0002071,2]
[349970603,1737541855661,-220.0,0.0002071,2]
[349970604,1737541855671,-864.4920526,0.00020718,2]
[349970605,1737541855680,-184.2019563,0.00020741,2]
[349970606,1737541855690,-472.86792644,0.00020762,2]
[349970607,1737541855701,-62165.38828361,0.00020784,2]
[349970608,1737541855712,-3372.02564498,0.00020784,2]
[349970609,1737541855723,-205.78419618,0.00020789,2]
[349970610,1737541855733,-3372.02564498,0.0002079,2]
[349970611,1737541855743,-1252.24761819,0.00020792,2]
[349970612,1737541855753,-500.0,0.00020808,2]
[349970613,1737541855764,-500.0,0.00020808,2]
[349970614,1737541855774,-500.0,0.00020808,2]
[349970615,1737541855783,-655.58,0.00020808,2]
[349970616,1737541855793,-720.75,0.00020808,2]
[349970617,1737541855803,-500.0,0.00020808,2]
[349970618,1737541855814,-510.91,0.00020808,2]
[349970619,1737541855829,-500.0,0.00020808,2]
[349970620,1737541855839,-500.0,0.00020808,2]
[349970621,1737541855850,-500.0,0.00020808,2]
[349970622,1737541855860,-589.74,0.00020808,2]
[349970623,1737541855870,-500.0,0.00020808,2]
[349970624,1737541855879,-708.62,0.00020808,2]
[349970625,1737541855890,-500.0,0.00020808,2]
[349970626,1737541855901,-625.44,0.00020808,2]
[349970627,1737541855912,-500.0,0.00020808,2]
[349970628,1737541855922,-500.0,0.00020808,2]
[349970629,1737541855932,-500.0,0.00020808,2]
[349970630,1737541855942,-550.34,0.00020808,2]
[349970631,1737541855952,-500.0,0.00020808,2]
[349970632,1737541855962,-834.71,0.00020808,2]
[349970633,1737541855972,-500.0,0.00020808,2]
[349970634,1737541855981,-902.73,0.00020808,2]
[349970635,1737541855992,-872.01,0.00020808,2]
[349970636,1737541856003,-500.0,0.00020808,2]
[349970637,1737541856013,-619.72,0.00020808,2]
[349970638,1737541856024,-500.0,0.00020808,2]
[349970639,1737541856033,-876.53,0.00020808,2]
[349970640,1737541856043,-500.0,0.00020808,2]
[349970641,1737541856054,-613.46,0.00020808,2]
[349970642,1737541856064,-500.0,0.00020808,2]
[349970643,1737541856075,-500.0,0.00020808,2]
[349970644,1737541856085,-722.25,0.00020808,2]
[349970645,1737541856096,-500.0,0.00020808,2]
[349970646,1737541856107,-668.05,0.00020808,2]
[349970647,1737541856117,-675.35,0.00020808,2]
[349970648,1737541856127,-677.79,0.00020808,2]
[349970649,1737541856137,-544.94,0.00020808,2]
[349970650,1737541856147,-553.72,0.00020808,2]
[349970651,1737541856156,-603.56,0.00020808,2]
[349970652,1737541856167,-783.76,0.00020808,2]
[349970653,1737541856178,-286.82448119,0.00020808,2]
[349970654,1737541856188,-500.0,0.00020808,2]
[349970655,1737541856198,-575.54,0.00020808,2]
[349970656,1737541856208,-1909.22,0.00020808,2]
[349970657,1737541856217,-1033.66,0.00020808,2]
[349970658,1737541856228,-1473.85,0.00020808,2]
[349970659,1737541856238,-693.15,0.00020808,2]
[349970660,1737541856248,-285.9,0.00020808,2]
[349970661,1737541856258,-1568.94,0.00020808,2]
[349970662,1737541856267,-551.67,0.00020808,2]
[349970663,1737541856277,-500.0,0.00020808,2]
[349970664,1737541856287,-3589.15,0.00020808,2]
[349970665,1737541856297,-638.09,0.00020808,2]
[349970666,1737541856306,-1417.99,0.00020808,2]
[349970667,1737541856316,-500.0,0.00020808,2]
[349970668,1737541856326,-2387.18,0.00020808,2]
[349970669,1737541856458,-3484.74,0.00020808,2]
[349970670,1737541856486,-1031.11,0.00020808,2]
[349970671,1737541856497,-500.0,0.00020808,2]
[349970672,1737541856508,-1387.85,0.00020808,2]
[349970673,1737541856517,-500.0,0.00020808,2]
[349970674,1737541856527,-500.0,0.00020808,2]
[349970675,1737541856536,-2015.76,0.00020808,2]
[349970676,1737541856546,-590.43,0.00020808,2]
[349970677,1737541856555,-500.0,0.00020808,2]
[349970678,1737541856565,-500.0,0.00020808,2]
[349970679,1737541856574,-2072.9,0.00020808,2]
[349970680,1737541856583,-1138.61,0.00020808,2]
[349970681,1737541856592,-2193.32,0.00020808,2]
[349970682,1737541856601,-999.0,0.00020808,2]
[349970683,1737541856611,-1037.28,0.00020808,2]
[349970684,1737541856620,-1217.24,0.00020808,2]
[349970685,1737541856630,-589.16,0.00020808,2]
[349970686,1737541856640,-500.0,0.00020808,2]
[349970687,1737541856650,-500.0,0.00020808,2]
[349970688,1737541856659,-738.06,0.00020808,2]
[349970689,1737541856669,-516.2,0.00020808,2]
[349970690,1737541856678,-530.64,0.00020808,2]
[349970691,1737541856689,-620.17,0.00020808,2]
[349970692,1737541856698,-1951.53,0.00020808,2]
[349970693,1737541856707,-500.0,0.00020808,2]
[349970694,1737541856717,-2154.26,0.00020808,2]
[349970695,1737541856726,-500.0,0.00020808,2]
[349970696,1737541856736,-500.0,0.00020808,2]
[349970697,1737541856745,-500.0,0.00020808,2]
[349970698,1737541856755,-500.0,0.00020808,2]
[349970699,1737541856765,-500.0,0.00020808,2]
[349970700,1737541856774,-500.0,0.00020808,2]
[349970701,1737541856784,-752.45,0.00020808,2]
[349970702,1737541856793,-576.31,0.00020808,2]
[349970703,1737541856803,-628.0,0.00020808,2]
[349970704,1737541856815,-500.0,0.00020808,2]
[349970705,1737541856825,-571.59,0.00020808,2]
[349970706,1737541856834,-1387.31,0.00020808,2]
[349970707,1737541856844,-501.03,0.00020808,2]
[349970708,1737541856854,-500.0,0.00020808,2]
[349970709,1737541856864,-1834.49,0.00020808,2]
[349970710,1737541856874,-500.0,0.00020808,2]
[349970711,1737541856882,-632.98,0.00020808,2]
[349970712,1737541856894,-56354.959281,0.00020809,2]
[349970713,1737541856905,-500.0,0.00020809,2]
[349970714,1737541856914,-500.0,0.00020809,2]
[349970715,1737541856924,-500.0,0.00020809,2]
[349970716,1737541856933,-679.64,0.00020809,2]
[349970717,1737541856944,-500.0,0.00020809,2]
[349970718,1737541856953,-500.0,0.00020809,2]
[349970719,1737541856962,-500.0,0.00020809,2]
[349970720,1737541856971,-500.0,0.00020809,2]
[349970721,1737541856980,-649.13,0.00020809,2]
[349970722,1737541856989,-500.0,0.00020809,2]
[349970723,1737541856999,-500.0,0.00020809,2]
[349970724,1737541857009,-803.34,0.00020809,2]
[349970725,1737541857018,-500.0,0.00020809,2]
[349970726,1737541857028,-558.09,0.00020809,2]
[349970727,1737541857037,-685.56,0.00020809,2]
[349970728,1737541857046,-500.0,0.00020809,2]
[349970729,1737541857055,-500.0,0.00020809,2]
[349970730,1737541857064,-500.0,0.00020809,2]
[349970731,1737541857074,-551.34,0.00020809,2]
[349970732,1737541857084,-500.0,0.00020809,2]
[349970733,1737541857094,-500.0,0.00020809,2]
[349970734,1737541857103,-576.63,0.00020809,2]
[349970735,1737541857112,-500.0,0.00020809,2]
[349970736,1737541857122,-500.0,0.00020809,2]
[349970737,1737541857131,-645.06,0.00020809,2]
[349970738,1737541857141,-613.56,0.00020809,2]
[349970739,1737541857151,-500.0,0.00020809,2]
[349970740,1737541857161,-741.78,0.00020809,2]
[349970741,1737541857170,-572.14,0.00020809,2]
[349970742,1737541857179,-808.38,0.00020809,2]
[349970743,1737541857189,-500.0,0.00020809,2]
[349970744,1737541857199,-500.0,0.00020809,2]
[349970745,1737541857209,-500.0,0.00020809,2]
[349970746,1737541857218,-500.0,0.00020809,2]
[349970747,1737541857227,-500.0,0.00020809,2]
[349970748,1737541857237,-500.0,0.00020809,2]
[349970749,1737541857246,-792.14,0.00020809,2]
[349970750,1737541857257,-674.1,0.00020809,2]
[349970751,1737541857266,-500.0,0.00020809,2]
[349970752,1737541857276,-864.89,0.00020809,2]
[349970753,1737541857285,-740.39,0.00020809,2]
[349970754,1737541857295,-500.0,0.00020809,2]
[349970755,1737541857305,-500.0,0.00020809,2]
[349970756,1737541857314,-500.0,0.00020809,2]
[349970757,1737541857324,-500.0,0.00020809,2]
[349970758,1737541857333,-500.0,0.00020809,2]
[349970759,1737541857343,-500.0,0.00020809,2]
[349970760,1737541857352,-500.0,0.00020809,2]
[349970761,1737541857362,-500.0,0.00020809,2]
[349970762,1737541857372,-500.0,0.00020809,2]
[349970763,1737541857381,-680.5,0.00020809,2]
[349970764,1737541857391,-500.0,0.00020809,2]
[349970765,1737541857400,-500.0,0.00020809,2]
[349970766,1737541857410,-1854.8,0.00020809,2]
[349970767,1737541857420,-4049.8,0.00020809,2]
[349970768,1737541857430,-500.0,0.00020809,2]
[349970769,1737541857439,-730.82,0.00020809,2]
[349970770,1737541857449,-7307.34,0.00020809,2]
[349970771,1737541857459,-822.78,0.00020809,2]
[349970772,1737541857469,-985.38,0.00020809,2]
[349970773,1737541857478,-500.0,0.00020809,2]
[349970774,1737541857488,-330.35594887,0.00020809,2]
[349970775,1737541857498,-764.97,0.00020809,2]
[349970776,1737541857508,-617.66,0.00020809,2]
[349970777,1737541857517,-2071.46,0.00020809,2]
[349970778,1737541857527,-500.0,0.00020809,2]
[349970779,1737541857536,-500.0,0.00020809,2]
[349970780,1737541857546,-500.0,0.00020809,2]
[349970781,1737541857556,-521.86,0.00020809,2]
[349970782,1737541857566,-500.0,0.00020809,2]
[349970783,1737541857576,-934.2,0.00020809,2]
[349970784,1737541857586,-500.0,0.00020809,2]
[349970785,1737541857596,-500.0,0.00020809,2]
[349970786,1737541857605,-1295.45,0.00020809,2]
[349970787,1737541857615,-1443.13,0.00020809,2]
[349970788,1737541857625,-500.0,0.00020809,2]
[349970789,1737541857634,-1043.46,0.00020809,2]
[349970790,1737541857644,-1000.0,0.00020809,2]
[349970791,1737541857653,-706.31,0.00020809,2]
[349970792,1737541857663,-734.78,0.00020809,2]
[349970793,1737541857673,-500.0,0.00020809,2]
[349970794,1737541857683,-1024.34,0.00020809,2]
[349970795,1737541857692,-2026.46,0.00020809,2]
[349970796,1737541857702,-1666.71,0.00020809,2]
[349970797,1737541857711,-282.76851883,0.00020809,2]
[349970798,1737541857721,-856.41,0.00020809,2]
[349970799,1737541857730,-500.0,0.00020809,2]
[349970800,1737541857739,-500.0,0.00020809,2]
[349970801,1737541857748,-797.53,0.00020809,2]
[349970802,1737541857758,-500.0,0.00020809,2]
[349970803,1737541857767,-500.0,0.00020809,2]
[349970804,1737541857777,-500.0,0.0002081,2]
[349970805,1737541857787,-500.0,0.0002081,2]
[349970806,1737541857796,-500.0,0.0002081,2]
[349970807,1737541857805,-504.37,0.0002081,2]
[349970808,1737541857815,-1252.24761819,0.00020811,2]
[349970809,1737541857827,-337.70877401,0.00020812,2]
[349970810,1737541857837,-337.70877401,0.00020827,2]
[349970811,1737541857846,-200.0,0.0002083,2]
[349970812,1737541857856,-726.13945495,0.00020832,2]
[349970813,1737541857867,-1252.24761819,0.00020833,2]
[349970814,1737541857876,-3372.02564498,0.00020834,2]
[349970815,1737541857886,-62165.38828361,0.00020837,2]
[349970816,1737541857899,-337.70877401,0.0002084,2]
[349970817,1737541857908,-850.85689618,0.00020851,2]
[349970818,1737541857918,-726.13945495,0.00020852,2]
[349970819,1737541857928,-850.85689618,0.00020854,2]
[349970820,1737541857938,-13249.60600129,0.00020856,2]
[349970821,1737541857947,-167.06039711,0.00020857,2]
[349970822,1737541857958,-3443.15414423,0.00020857,2]
[349970823,1737541857969,-56354.959281,0.00020861,2]
[349970824,1737541857980,-3372.02564498,0.00020862,2]
[349970825,1737541857990,-13249.60600129,0.00020863,2]
[349970826,1737541858001,-56354.959281,0.00020864,2]
[349970827,1737541858011,-62165.38828361,0.00020872,2]
[349970828,1737541858020,-500.0,0.00020873,2]
[349970829,1737541858030,-151.1839109,0.00020873,2]
[349970830,1737541858039,-500.0,0.00020873,2]
[349970831,1737541858050,-3443.15414423,0.00020874,2]
[349970832,1737541858060,-850.85689618,0.00020877,2]
[349970833,1737541858070,-62165.38828361,0.0002088,2]
[349970834,1737541858080,-259387.78694589,0.00020882,2]
[349970835,1737541858091,-500.0,0.00020882,2]
[349970836,1737541858102,-151.0,0.00020883,2]
[349970837,1737541858112,-151.0,0.00020883,2]
[349970838,1737541858122,-151.0,0.00020883,2]
[349970839,1737541858131,-151.0,0.00020883,2]
[349970840,1737541858141,-151.0,0.00020883,2]
[349970841,1737541858150,-151.0,0.00020883,2]
[349970842,1737541858159,-364.300163,0.00020883,2]
[349970843,1737541858170,-172.871124,0.00020883,2]
[349970844,1737541858179,-1252.24761819,0.00020883,2]
[349970845,1737541858188,-151.0,0.00020884,2]
[349970846,1737541858198,-151.0,0.00020884,2]
[349970847,1737541858208,-337.70877401,0.00020887,2]
[349970848,1737541858217,-163.47,0.00020888,2]
[349970849,1737541858226,-13249.60600129,0.00020889,2]
[349970850,1737541858236,-3517.62112173,0.00020894,2]
[349970851,1737541858245,-13249.60600129,0.000209,2]
[349970852,1737541858254,-160.502,0.000209,2]
[349970853,1737541858264,-168464.25432051,0.000209,2]
[349970854,1737541858274,-250.0,0.000209,2]
[349970855,1737541858283,-250.0,0.000209,2]
[349970856,1737541858293,-425.8,0.000209,2]
[349970857,1737541858302,-205.78419618,0.000209,2]
[349970858,1737541858312,-13249.60600129,0.00020901,2]
[349970859,1737541858322,-850.85689618,0.00020904,2]
[349970860,1737541858333,-3443.15414423,0.00020904,2]
[349970861,1737541858342,-3517.62112173,0.00020906,2]
[349970862,1737541858351,-726.13945495,0.00020907,2]
[349970863,1737541858360,-3443.15414423,0.00020907,2]
[349970864,1737541858369,-3517.62112173,0.00020909,2]
[349970865,1737541858379,-3372.02564498,0.00020913,2]
[349970866,1737541858388,-850.85689618,0.00020916,2]
[349970867,1737541858397,-24098.8318994,0.00020916,2]
[349970868,1737541858407,-2000.0,0.00020916,2]
[349970869,1737541858416,-200.0,0.00020916,2]
[349970870,1737541858425,-17457.394593,0.00020918,2]
[349970871,1737541858435,-5143.28138385,0.00020918,2]
[349970872,1737541858444,-850.85689618,0.0002092,2]
[349970873,1737541858454,-337.70877401,0.00020921,2]
[349970874,1737541858463,-644.27193503,0.00020921,2]
[349970875,1737541858472,-1252.24761819,0.00020922,2]
[349970876,1737541858481,-15869.69942512,0.00020924,2]
[349970877,1737541858491,-27939.86342875,0.00020925,2]
[349970878,1737541858500,-726.13945495,0.00020926,2]
[349970879,1737541858510,-495.21439987,0.00020927,2]
[349970880,1737541858519,-200251.44766222,0.00020927,2]
[349970881,1737541858528,-3443.15414423,0.0002093,2]
[349970882,1737541858540,-2930.61904547,0.0002093,2]
[349970883,1737541858549,-2762.75402317,0.00020933,2]
[349970884,1737541858558,-644.27193503,0.00020933,2]
[349970885,1737541858568,-56354.959281,0.00020934,2]
[349970886,1737541858578,-3517.62112173,0.00020936,2]
[349970887,1737541858587,-200251.44766222,0.00020937,2]
[349970888,1737541858596,-2356.49194024,0.00020937,2]
[349970889,1737541858606,-3517.62112173,0.00020938,2]
[349970890,1737541858615,-2930.61904547,0.00020939,2]
[349970891,1737541858624,-27939.86342875,0.00020943,2]
[349970892,1737541858634,-726.13945495,0.00020943,2]
[349970893,1737541858644,-62165.38828361,0.00020944,2]
[349970894,1737541858654,-56354.959281,0.00020946,2]
[349970895,1737541858663,-15869.69942512,0.00020948,2]
[349970896,1737541858672,-495.21439987,0.00020949,2]
[349970897,1737541858682,-986.0,0.0002096,2]
[349970898,1737541858693,-654.69,0.00020983,2]
[349970899,1737541858703,-1545.87,0.00020983,2]
[349970900,1737541858712,-907.88,0.00020983,2]
[349970901,1737541858722,-1380.69,0.00020983,2]
[349970902,1737541858731,-1850.42,0.00020983,2]
[349970903,1737541858741,-1516.91,0.00020983,2]
[349970904,1737541858751,-953.88,0.00020983,2]
[349970905,1737541858760,-1013.98,0.00020983,2]
[349970906,1737541858770,-722.46,0.00020983,2]
[349970907,1737541858779,-1164.88,0.00020983,2]
[349970908,1737541858790,-1003.6,0.00020983,2]
[349970909,1737541858801,-902.13,0.00020983,2]
[349970910,1737541858811,-656.77,0.00020983,2]
[349970911,1737541858824,-1484.76,0.00020983,2]
[349970912,1737541858833,-500.0,0.00020983,2]
[349970913,1737541858842,-1336.41,0.00020983,2]
[349970914,1737541858853,-2006.54,0.00020983,2]
[349970915,1737541858865,-500.0,0.00020983,2]
[349970916,1737541858875,-677.86,0.00020983,2]
[349970917,1737541858885,-886.2,0.00020983,2]
[349970918,1737541858897,-2151.01,0.00020983,2]
[349970919,1737541858908,-2824.22,0.00020983,2]
[349970920,1737541858918,-3414.46,0.00020983,2]
[349970921,1737541858928,-841.92,0.00020983,2]
[349970922,1737541858938,-562.537247,0.00020983,2]
[349970923,1737541858948,-500.0,0.00020983,2]
[349970924,1737541858958,-944.29,0.00020983,2]
[349970925,1737541858967,-1011.31,0.00020983,2]
[349970926,1737541858977,-886.83,0.00020983,2]
[349970927,1737541858988,-956.347784,0.00020983,2]
[349970928,1737541858998,-3466.56,0.00020983,2]
[349970929,1737541859009,-1869.72,0.00020983,2]
[349970930,1737541859019,-500.0,0.00020983,2]
[349970931,1737541859028,-1416.25,0.00020983,2]
[349970932,1737541859038,-689.18,0.00020983,2]
[349970933,1737541859047,-1332.39,0.00020983,2]
[349970934,1737541859056,-2217.4,0.00020983,2]
[349970935,1737541859066,-806.82,0.00020983,2]
[349970936,1737541859075,-500.0,0.00020983,2]
[349970937,1737541859085,-1001.78,0.00020983,2]
[349970938,1737541859094,-1215.48,0.00020983,2]
[349970939,1737541859104,-500.0,0.00020983,2]
[349970940,1737541859114,-2702.1,0.00020983,2]
[349970941,1737541859124,-835.57,0.00020983,2]
[349970942,1737541859134,-150.0,0.00021,4]
[349970943,1737541859143,-51703.06644559,0.00021,2]
[349970944,1737541859153,-2215.93258516,0.00021,2]
[349970945,1737541859163,-9157.95413342,0.00021,2]
[349970946,1737541859173,-745.0,0.00021,2]
[349970947,1737541859184,-205.78419618,0.00021011,2]
[349970948,1737541859194,-594.98736158,0.00021013,2]
[349970949,1737541859409,-567.0,0.00020187,2]
[349970950,1737541859419,-269.50469102,0.00021013,2]
[349970951,1737541859428,-150.0,0.00021017,2]
[349970952,1737541859439,-472.86792644,0.00021046,2]
[349970953,1737541859448,-500.0,0.00021082,2]
[349970954,1737541859458,-500.0,0.00021082,2]
[349970955,1737541859467,-500.0,0.00021082,2]
[349970956,1737541859476,-655.58,0.00021082,2]
[349970957,1737541859485,-720.75,0.00021082,2]
[349970958,1737541859495,-500.0,0.00021082,2]
[349970959,1737541859659,-510.91,0.00021082,2]
[349970960,1737541859669,-500.0,0.00021082,2]
[349970961,1737541859680,-500.0,0.00021082,2]
[349970962,1737541859689,-500.0,0.00021082,2]
[349970963,1737541859698,-589.74,0.00021082,2]
[349970964,1737541859707,-327.19438674,0.00021082,2]
[349970965,1737541859717,-708.62,0.00021082,2]
[349970966,1737541859726,-500.0,0.00021082,2]
[349970967,1737541859736,-625.44,0.00021082,2]
[349970968,1737541859745,-500.0,0.00021082,2]
[349970969,1737541859756,-500.0,0.00021082,2]
[349970970,1737541859764,-500.0,0.00021082,2]
[349970971,1737541859774,-550.34,0.00021082,2]
[349970972,1737541859784,-500.0,0.00021082,2]
[349970973,1737541859795,-834.71,0.00021082,2]
[349970974,1737541859804,-500.0,0.00021082,2]
[349970975,1737541859814,-902.73,0.00021082,2]
[349970976,1737541859829,-872.01,0.00021082,2]
[349970977,1737541859838,-500.0,0.00021082,2]
[349970978,1737541859848,-619.72,0.00021082,2]
[349970979,1737541859859,-500.0,0.00021082,2]
[349970980,1737541859868,-876.53,0.00021082,2]
[349970981,1737541859878,-500.0,0.00021082,2]
[349970982,1737541859887,-613.46,0.00021082,2]
[349970983,1737541859899,-500.0,0.00021082,2]
[349970984,1737541859908,-500.0,0.00021082,2]
[349970985,1737541859918,-722.25,0.00021082,2]
[349970986,1737541859927,-500.0,0.00021082,2]
[349970987,1737541859936,-668.05,0.00021082,2]
[349970988,1737541859945,-675.35,0.00021082,2]
[349970989,1737541859955,-677.79,0.00021082,2]
[349970990,1737541859964,-544.94,0.00021082,2]
[349970991,1737541859973,-553.72,0.00021082,2]
[349970992,1737541859982,-603.56,0.00021082,2]
[349970993,1737541859991,-783.76,0.00021082,2]
[349970994,1737541860000,-500.0,0.00021082,2]
[349970995,1737541860010,-575.54,0.00021082,2]
[349970996,1737541860019,-1909.22,0.00021082,2]
[349970997,1737541860029,-1033.66,0.00021082,2]
[349970998,1737541860038,-1473.85,0.00021082,2]
[349970999,1737541860049,-693.15,0.00021082,2]
[349971000,1737541860059,-1568.94,0.00021082,2]
[349971001,1737541860069,-551.67,0.00021082,2]
[349971002,1737541860081,-500.0,0.00021082,2]
[349971003,1737541860091,-3589.15,0.00021082,2]
[349971004,1737541860100,-638.09,0.00021082,2]
[349971005,1737541860110,-1417.99,0.00021082,2]
[349971006,1737541860120,-500.0,0.00021082,2]
[349971007,1737541860129,-2387.18,0.00021082,2]
[349971008,1737541860139,-3484.74,0.00021082,2]
[349971009,1737541860148,-1031.11,0.00021082,2]
[349971010,1737541860157,-500.0,0.00021082,2]
[349971011,1737541860167,-1387.85,0.00021082,2]
[349971012,1737541860176,-321.79050836,0.00021082,2]
[349971013,1737541860186,-500.0,0.00021082,2]
[349971014,1737541860195,-2015.76,0.00021082,2]
[349971015,1737541860204,-590.43,0.00021082,2]
[349971016,1737541860213,-500.0,0.00021082,2]
[349971017,1737541860223,-500.0,0.00021082,2]
[349971018,1737541860232,-2072.9,0.00021082,2]
[349971019,1737541860242,-1138.61,0.00021082,2]
[349971020,1737541860251,-2193.32,0.00021082,2]
[349971021,1737541860261,-1037.28,0.00021082,2]
[349971022,1737541860271,-1217.24,0.00021082,2]
[349971023,1737541860282,-589.16,0.00021082,2]
[349971024,1737541860292,-500.0,0.00021082,2]
[349971025,1737541860302,-500.0,0.00021082,2]
[349971026,1737541860312,-738.06,0.00021082,2]
[349971027,1737541860321,-516.2,0.00021082,2]
[349971028,1737541860332,-530.64,0.00021082,2]
[349971029,1737541860341,-620.17,0.00021082,2]
[349971030,1737541860350,-1951.53,0.00021082,2]
[349971031,1737541860359,-500.0,0.00021082,2]
[349971032,1737541860368,-2154.26,0.00021082,2]
[349971033,1737541860378,-500.0,0.00021082,2]
[349971034,1737541860387,-500.0,0.00021082,2]
[349971035,1737541860396,-500.0,0.00021082,2]
[349971036,1737541860405,-500.0,0.00021082,2]
[349971037,1737541860414,-500.0,0.00021082,2]
[349971038,1737541860424,-500.0,0.00021082,2]
[349971039,1737541860434,-752.45,0.00021082,2]
[349971040,1737541860444,-576.31,0.00021082,2]
[349971041,1737541860453,-628.0,0.00021082,2]
[349971042,1737541860463,-500.0,0.00021082,2]
[349971043,1737541860473,-571.59,0.00021082,2]
[349971044,1737541860483,-1387.31,0.00021082,2]
[349971045,1737541860493,-501.03,0.00021082,2]
[349971046,1737541860502,-500.0,0.00021082,2]
[349971047,1737541860512,-1834.49,0.00021082,2]
[349971048,1737541860524,-500.0,0.00021082,2]
[349971049,1737541860533,-632.98,0.00021082,2]
[349971050,1737541860543,-500.0,0.00021083,2]
[349971051,1737541860552,-500.0,0.00021083,2]
[349971052,1737541860562,-500.0,0.00021083,2]
[349971053,1737541860571,-679.64,0.00021083,2]